fUST/lending_fUST_20240902
["ID","MTS","AMOUNT","RATE_DAILY","PERIOD"]
[336982189,1725274268841,-1158.75,0.00027945,15]
[336982190,1725274268851,-668.22,0.00027945,15]
[336982191,1725274268860,-397.335,0.00028,5]
[336982192,1725274268870,-3194.45485009,0.00028,3]
[336982193,1725274268880,-255.13510837,0.00028,5]
[336982194,1725274268889,-1200.0,0.00028019,2]
[336982195,1725274268899,-2800.0,0.00028049,2]
[336982196,1725274268908,-222.231206,0.00028082,2]
[336982197,1725274268917,-1600.0,0.00028121,2]
[336982198,1725274268926,-1000.0,0.00028125,2]
[336982199,1725274268936,-500.0,0.00028131,2]
[336982200,1725274268945,-1600.0,0.00028134,2]
[336982201,1725274268955,-2800.0,0.00028139,2]
[336982202,1725274268965,-500.0,0.00028193,2]
[336982203,1725274268974,-1000.0,0.000282,2]
[336982204,1725274268984,-584.24,0.00028219,15]
[336982205,1725274268993,-500.0,0.00028219,15]
[336982206,1725274269004,-500.0,0.00028219,15]
[336982207,1725274269014,-1144.91,0.00028219,15]
[336982208,1725274269024,-236.2709,0.00028219,15]
[336982209,1725274269032,-795.89,0.00028219,15]
[336982210,1725274269042,-521.53,0.00028219,15]
[336982211,1725274269053,-651.75,0.00028219,15]
[336982212,1725274269063,-500.0,0.00028219,15]
[336982213,1725274269073,-328.06159427,0.00028219,15]
[336982214,1725274269082,-500.0,0.00028219,15]
[336982215,1725274269091,-500.0,0.00028219,15]
[336982216,1725274269101,-574.04,0.00028219,15]
[336982217,1725274269111,-898.46,0.00028219,15]
[336982218,1725274269120,-688.53,0.00028219,15]
[336982219,1725274269129,-500.0,0.00028219,15]
[336982220,1725274269139,-609.28,0.00028219,15]
[336982221,1725274269149,-643.97,0.00028219,15]
[336982222,1725274269159,-500.0,0.00028219,15]
[336982223,1725274269168,-500.0,0.00028219,15]
[336982224,1725274269178,-576.26283773,0.00028219,15]
[336982225,1725274269187,-500.0,0.00028219,15]
[336982226,1725274269197,-500.0,0.00028219,15]
[336982227,1725274269206,-500.0,0.00028219,15]
[336982228,1725274269216,-509.62,0.00028219,14]
[336982229,1725274269226,-789.32,0.00028219,15]
[336982230,1725274269235,-500.0,0.00028219,7]
[336982231,1725274269245,-882.62,0.00028219,15]
[336982232,1725274269256,-488.28623836,0.00028219,15]
[336982233,1725274269274,-809.83,0.00028219,15]
[336982234,1725274269283,-500.0,0.00028219,15]
[336982235,1725274269292,-1150.5,0.00028219,15]
[336982236,1725274269303,-500.0,0.00028219,15]
[336982237,1725274269313,-6814.09,0.00028219,8]
[336982238,1725274269323,-1308.56,0.00028219,15]
[336982239,1725274269331,-637.27,0.00028219,15]
[336982240,1725274269340,-865.77,0.00028219,15]
[336982241,1725274269350,-950.48,0.00028219,15]
[336982242,1725274269359,-1009.23,0.00028219,15]
[336982243,1725274269368,-2894.89,0.00028219,15]
[336982244,1725274269377,-1601.38,0.00028219,15]
[336982245,1725274269386,-500.0,0.00028219,15]
[336982246,1725274269395,-713.16,0.00028219,15]
[336982247,1725274269404,-1471.23,0.00028219,15]
[336982248,1725274269414,-500.0,0.00028219,15]
[336982249,1725274269423,-842.06,0.00028219,15]
[336982250,1725274269431,-598.48,0.00028219,15]
[336982251,1725274269441,-718.52,0.00028219,15]
[336982252,1725274269450,-1029.29,0.00028219,15]
[336982253,1725274269460,-613.02,0.00028219,15]
[336982254,1725274269470,-865.09,0.00028219,15]
[336982255,1725274269479,-687.81,0.00028219,15]
[336982256,1725274269488,-813.79,0.00028219,15]
[336982257,1725274269498,-1898.68,0.00028219,15]
[336982258,1725274269509,-500.0,0.00028219,15]
[336982259,1725274269518,-534.47,0.00028219,15]
[336982260,1725274269527,-1265.33,0.00028219,15]
[336982261,1725274269537,-500.0,0.00028219,15]
[336982262,1725274269546,-500.0,0.00028219,15]
[336982263,1725274269556,-609.75,0.00028219,15]
[336982264,1725274269565,-960.51,0.00028219,15]
[336982265,1725274269575,-500.0,0.00028219,15]
[336982266,1725274269586,-668.74,0.00028219,15]
[336982267,1725274269596,-500.0,0.00028219,15]
[336982268,1725274269605,-978.13,0.00028219,15]
[336982269,1725274269620,-893.12,0.00028219,15]
[336982270,1725274269631,-735.7,0.00028219,15]
[336982271,1725274269640,-3970.16,0.00028219,15]
[336982272,1725274269650,-877.32,0.00028219,15]
[336982273,1725274269660,-4849.28,0.00028219,15]
[336982274,1725274269669,-500.0,0.00028219,15]
[336982275,1725274269679,-953.2,0.00028219,15]
[336982276,1725274269690,-500.0,0.00028219,15]
[336982277,1725274269700,-1136.95,0.00028219,15]
[336982278,1725274269710,-730.41,0.00028219,15]
[336982279,1725274269720,-1672.46,0.00028219,15]
[336982280,1725274269730,-710.81,0.00028219,15]
[336982281,1725274269739,-500.0,0.00028219,15]
[336982282,1725274269749,-640.41,0.00028219,15]
[336982283,1725274269760,-1952.94,0.00028219,15]
[336982284,1725274269769,-941.61,0.00028219,15]
[336982285,1725274269779,-547.19,0.00028219,15]
[336982286,1725274269789,-1195.94,0.00028219,15]
[336982287,1725274269799,-500.0,0.00028219,15]
[336982288,1725274269808,-523.2,0.00028219,15]
[336982289,1725274269817,-500.0,0.00028219,15]
[336982290,1725274269827,-500.0,0.00028219,15]
[336982291,1725274269836,-1299.65,0.00028219,15]
[336982292,1725274269846,-1158.75,0.00028219,15]
[336982293,1725274269856,-668.22,0.00028219,15]
[336982294,1725274269867,-30000.0,0.00028242,3]
[336982295,1725274269877,-2800.0,0.00028246,2]
[336982296,1725274269887,-151.0,0.00028295,4]
[336982297,1725274269896,-1000.0,0.000283,2]
[336982298,1725274269905,-1687.89,0.000283,7]
[336982299,1725274269916,-1059.1,0.000283,14]
[336982300,1725274269925,-1200.0,0.00028319,2]
[336982301,1725274269934,-500.0,0.00028323,2]
[336982302,1725274269943,-501.45036241,0.00028362,2]
[336982303,1725274269952,-1200.0,0.00028371,2]
[336982304,1725274269962,-1000.0,0.00028378,2]
[336982305,1725274269971,-500.0,0.00028399,2]
[336982306,1725274269980,-1000.0,0.000284,2]
[336982307,1725274269990,-1000.0,0.00028446,2]
[336982308,1725274269999,-1600.0,0.00028458,2]
[336982309,1725274270010,-2340.72849127,0.00028489,5]
[336982310,1725274270020,-2500.0,0.00028489,5]
[336982311,1725274270029,-584.24,0.00028493,15]
[336982312,1725274270038,-647.44361813,0.00028493,15]
[336982313,1725274270048,-252.02699443,0.00028493,15]
[336982314,1725274270057,-1144.91,0.00028493,15]
[336982315,1725274270067,-795.89,0.00028493,15]
[336982316,1725274270076,-521.53,0.00028493,15]
[336982317,1725274270086,-651.75,0.00028493,15]
[336982318,1725274270096,-500.0,0.00028493,15]
[336982319,1725274270106,-500.0,0.00028493,15]
[336982320,1725274270116,-500.0,0.00028493,15]
[336982321,1725274270126,-574.04,0.00028493,15]
[336982322,1725274270136,-898.46,0.00028493,15]
[336982323,1725274270147,-688.53,0.00028493,15]
[336982324,1725274270158,-500.0,0.00028493,15]
[336982325,1725274270169,-609.28,0.00028493,15]
[336982326,1725274270179,-643.97,0.00028493,15]
[336982327,1725274270189,-500.0,0.00028493,15]
[336982328,1725274270201,-500.0,0.00028493,15]
[336982329,1725274270211,-500.0,0.00028493,15]
[336982330,1725274270223,-500.0,0.00028493,15]
[336982331,1725274270233,-500.0,0.00028493,15]
[336982332,1725274270243,-509.62,0.00028493,14]
[336982333,1725274270255,-789.32,0.00028493,15]
[336982334,1725274270377,-500.0,0.00028493,7]
[336982335,1725274270389,-882.62,0.00028493,15]
[336982336,1725274270398,-809.83,0.00028493,15]
[336982337,1725274270408,-500.0,0.00028493,15]
[336982338,1725274270417,-1150.5,0.00028493,15]
[336982339,1725274270426,-500.0,0.00028493,15]
[336982340,1725274270435,-6814.09,0.00028493,8]
[336982341,1725274270444,-1308.56,0.00028493,15]
[336982342,1725274270453,-637.27,0.00028493,15]
[336982343,1725274270463,-865.77,0.00028493,15]
[336982344,1725274270472,-950.48,0.00028493,15]
[336982345,1725274270481,-1009.23,0.00028493,15]
[336982346,1725274270491,-2894.89,0.00028493,15]
[336982347,1725274270500,-1601.38,0.00028493,15]
[336982348,1725274270510,-500.0,0.00028493,15]
[336982349,1725274270519,-713.16,0.00028493,15]
[336982350,1725274270529,-1471.23,0.00028493,15]
[336982351,1725274270541,-500.0,0.00028493,15]
[336982352,1725274270551,-842.06,0.00028493,15]
[336982353,1725274270564,-598.48,0.00028493,15]
[336982354,1725274270574,-718.52,0.00028493,15]
[336982355,1725274270584,-1029.29,0.00028493,15]
[336982356,1725274270595,-613.02,0.00028493,15]
[336982357,1725274270604,-865.09,0.00028493,15]
[336982358,1725274270617,-687.81,0.00028493,15]
[336982359,1725274270626,-813.79,0.00028493,15]
[336982360,1725274270635,-1898.68,0.00028493,15]
[336982361,1725274270646,-500.0,0.00028493,15]
[336982362,1725274270657,-534.47,0.00028493,15]
[336982363,1725274270667,-1265.33,0.00028493,15]
[336982364,1725274270676,-500.0,0.00028493,15]
[336982365,1725274270685,-500.0,0.00028493,15]
[336982366,1725274270697,-609.75,0.00028493,15]
[336982367,1725274270707,-960.51,0.00028493,15]
[336982368,1725274270717,-500.0,0.00028493,15]
[336982369,1725274270728,-668.74,0.00028493,15]
[336982370,1725274270738,-500.0,0.00028493,15]
[336982371,1725274270749,-978.13,0.00028493,15]
[336982372,1725274270760,-893.12,0.00028493,15]
[336982373,1725274270769,-735.7,0.00028493,15]
[336982374,1725274270779,-3970.16,0.00028493,15]
[336982375,1725274270788,-877.32,0.00028493,15]
[336982376,1725274270797,-4849.28,0.00028493,15]
[336982377,1725274270806,-500.0,0.00028493,15]
[336982378,1725274270816,-953.2,0.00028493,15]
[336982379,1725274270825,-500.0,0.00028493,15]
[336982380,1725274270834,-1136.95,0.00028493,15]
[336982381,1725274270844,-730.41,0.00028493,15]
[336982382,1725274270855,-1672.46,0.00028493,15]
[336982383,1725274270864,-710.81,0.00028493,15]
[336982384,1725274270874,-312.8754679,0.00028493,15]
[336982385,1725274270883,-640.41,0.00028493,15]
[336982386,1725274270893,-1952.94,0.00028493,15]
[336982387,1725274270903,-941.61,0.00028493,15]
[336982388,1725274270912,-547.19,0.00028493,15]
[336982389,1725274270922,-1195.94,0.00028493,15]
[336982390,1725274270932,-500.0,0.00028493,15]
[336982391,1725274270942,-523.2,0.00028493,15]
[336982392,1725274270953,-500.0,0.00028493,15]
[336982393,1725274270964,-500.0,0.00028493,15]
[336982394,1725274270975,-1299.65,0.00028493,15]
[336982395,1725274270986,-1158.75,0.00028493,15]
[336982396,1725274270995,-668.22,0.00028493,15]
[336982397,1725274271005,-174.1269841,0.00028493,2]
[336982398,1725274271014,-1000.0,0.000285,2]
[336982399,1725274271024,-2800.0,0.00028598,2]
[336982400,1725274271035,-1600.0,0.00028643,2]
[336982401,1725274271046,-600.0,0.00028668,2]
[336982402,1725274271056,-500.0,0.00028671,2]
[336982403,1725274271065,-1600.0,0.00028672,2]
[336982404,1725274271075,-151.0,0.0002868,5]
[336982405,1725274271084,-1000.0,0.00028692,2]
[336982406,1725274271093,-4097.0,0.000287,14]
[336982407,1725274271102,-1600.0,0.00028706,2]
[336982408,1725274271111,-2800.0,0.00028728,2]
[336982409,1725274271122,-1200.0,0.00028753,2]
[336982410,1725274271131,-584.24,0.00028767,15]
[336982411,1725274271140,-1144.91,0.00028767,15]
[336982412,1725274271150,-795.89,0.00028767,15]
[336982413,1725274271160,-521.53,0.00028767,15]
[336982414,1725274271170,-651.75,0.00028767,15]
[336982415,1725274271180,-500.0,0.00028767,15]
[336982416,1725274271189,-500.0,0.00028767,15]
[336982417,1725274271198,-500.0,0.00028767,15]
[336982418,1725274271207,-574.04,0.00028767,15]
[336982419,1725274271216,-898.46,0.00028767,15]
[336982420,1725274271226,-688.53,0.00028767,15]
[336982421,1725274271236,-500.0,0.00028767,15]
[336982422,1725274271247,-609.28,0.00028767,15]
[336982423,1725274271260,-643.97,0.00028767,15]
[336982424,1725274271271,-500.0,0.00028767,15]
[336982425,1725274271280,-500.0,0.00028767,15]
[336982426,1725274271290,-500.0,0.00028767,15]
[336982427,1725274271299,-500.0,0.00028767,15]
[336982428,1725274271308,-500.0,0.00028767,15]
[336982429,1725274271317,-509.62,0.00028767,14]
[336982430,1725274271326,-789.32,0.00028767,15]
[336982431,1725274271336,-500.0,0.00028767,7]
[336982432,1725274271346,-882.62,0.00028767,15]
[336982433,1725274271355,-809.83,0.00028767,15]
[336982434,1725274271365,-500.0,0.00028767,15]
[336982435,1725274271375,-1150.5,0.00028767,15]
[336982436,1725274271384,-500.0,0.00028767,15]
[336982437,1725274271394,-6814.09,0.00028767,8]
[336982438,1725274271404,-1308.56,0.00028767,15]
[336982439,1725274271414,-637.27,0.00028767,15]
[336982440,1725274271423,-865.77,0.00028767,15]
[336982441,1725274271432,-950.48,0.00028767,15]
[336982442,1725274271443,-1009.23,0.00028767,15]
[336982443,1725274271452,-2894.89,0.00028767,15]
[336982444,1725274271461,-1601.38,0.00028767,15]
[336982445,1725274271470,-500.0,0.00028767,15]
[336982446,1725274271479,-713.16,0.00028767,15]
[336982447,1725274271488,-1471.23,0.00028767,15]
[336982448,1725274271498,-500.0,0.00028767,15]
[336982449,1725274271507,-842.06,0.00028767,15]
[336982450,1725274271518,-598.48,0.00028767,15]
[336982451,1725274271527,-718.52,0.00028767,15]
[336982452,1725274271538,-1029.29,0.00028767,15]
[336982453,1725274271547,-613.02,0.00028767,15]
[336982454,1725274271557,-865.09,0.00028767,15]
[336982455,1725274271566,-687.81,0.00028767,15]
[336982456,1725274271576,-813.79,0.00028767,15]
[336982457,1725274271586,-1898.68,0.00028767,15]
[336982458,1725274271595,-500.0,0.00028767,15]
[336982459,1725274271604,-534.47,0.00028767,15]
[336982460,1725274271617,-1265.33,0.00028767,15]
[336982461,1725274271627,-500.0,0.00028767,15]
[336982462,1725274271636,-500.0,0.00028767,15]
[336982463,1725274271646,-609.75,0.00028767,15]
[336982464,1725274271656,-960.51,0.00028767,15]
[336982465,1725274271666,-500.0,0.00028767,15]
[336982466,1725274271676,-668.74,0.00028767,15]
[336982467,1725274271686,-500.0,0.00028767,15]
[336982468,1725274271698,-978.13,0.00028767,15]
[336982469,1725274271709,-893.12,0.00028767,15]
[336982470,1725274271718,-735.7,0.00028767,15]
[336982471,1725274271727,-3970.16,0.00028767,15]
[336982472,1725274271736,-877.32,0.00028767,15]
[336982473,1725274271746,-4849.28,0.00028767,15]
[336982474,1725274271755,-335.01,0.00028767,15]
[336982475,1725274271765,-953.2,0.00028767,15]
[336982476,1725274271775,-500.0,0.00028767,15]
[336982477,1725274271785,-1136.95,0.00028767,15]
[336982478,1725274271794,-730.41,0.00028767,15]
[336982479,1725274271803,-1672.46,0.00028767,15]
[336982480,1725274271813,-710.81,0.00028767,15]
[336982481,1725274271822,-640.41,0.00028767,15]
[336982482,1725274271831,-1952.94,0.00028767,15]
[336982483,1725274271840,-941.61,0.00028767,15]
[336982484,1725274271850,-547.19,0.00028767,15]
[336982485,1725274271860,-1195.94,0.00028767,15]
[336982486,1725274271869,-500.0,0.00028767,15]
[336982487,1725274271879,-523.2,0.00028767,15]
[336982488,1725274271888,-500.0,0.00028767,15]
[336982489,1725274271899,-500.0,0.00028767,15]
[336982490,1725274271910,-1299.65,0.00028767,15]
[336982491,1725274271920,-1158.75,0.00028767,15]
[336982492,1725274271930,-668.22,0.00028767,15]
[336982493,1725274271940,-222.231206,0.00028767,2]
[336982494,1725274271950,-306.0,0.00028777,2]
[336982495,1725274271960,-153.0,0.00028777,2]
[336982496,1725274271970,-153.0,0.00028777,2]
[336982497,1725274271980,-1000.0,0.00028796,2]
[336982498,1725274271991,-2345.37,0.000288,14]
[336982499,1725274272000,-2800.0,0.00028864,2]
[336982500,1725274272011,-2800.0,0.00028869,2]
[336982501,1725274272021,-587.0,0.00028893,2]
[336982502,1725274272031,-2800.0,0.0002892,2]
[336982503,1725274272041,-600.0,0.00028967,2]
[336982504,1725274272050,-2800.0,0.00028994,2]
[336982505,1725274272061,-853.18017692,0.00029,2]
[336982506,1725274272071,-1000.0,0.00029,29]
[336982507,1725274272080,-500.0,0.00029034,2]
[336982508,1725274272089,-584.24,0.00029041,15]
[336982509,1725274272098,-1144.91,0.00029041,15]
[336982510,1725274272108,-795.89,0.00029041,15]
[336982511,1725274272117,-521.53,0.00029041,15]
[336982512,1725274272127,-651.75,0.00029041,15]
[336982513,1725274272137,-500.0,0.00029041,15]
[336982514,1725274272146,-500.0,0.00029041,15]
[336982515,1725274272155,-500.0,0.00029041,15]
[336982516,1725274272164,-574.04,0.00029041,15]
[336982517,1725274272174,-898.46,0.00029041,15]
[336982518,1725274272183,-688.53,0.00029041,15]
[336982519,1725274272192,-500.0,0.00029041,15]
[336982520,1725274272201,-609.28,0.00029041,15]
[336982521,1725274272210,-643.97,0.00029041,15]
[336982522,1725274272221,-177.78151725,0.00029041,15]
[336982523,1725274272230,-500.0,0.00029041,15]
[336982524,1725274272240,-500.0,0.00029041,15]
[336982525,1725274272252,-500.0,0.00029041,15]
[336982526,1725274272262,-500.0,0.00029041,15]
[336982527,1725274272273,-509.62,0.00029041,14]
[336982528,1725274272283,-789.32,0.00029041,15]
[336982529,1725274272292,-362.78614016,0.00029041,7]
[336982530,1725274272302,-882.62,0.00029041,15]
[336982531,1725274272312,-809.83,0.00029041,15]
[336982532,1725274272321,-500.0,0.00029041,15]
[336982533,1725274272331,-1150.5,0.00029041,15]
[336982534,1725274272340,-427.95544315,0.00029041,15]
[336982535,1725274272350,-6814.09,0.00029041,8]
[336982536,1725274272360,-637.27,0.00029041,15]
[336982537,1725274272369,-1308.56,0.00029041,15]
[336982538,1725274272379,-865.77,0.00029041,15]
[336982539,1725274272388,-950.48,0.00029041,15]
[336982540,1725274272397,-1009.23,0.00029041,15]
[336982541,1725274272407,-2894.89,0.00029041,15]
[336982542,1725274272416,-1601.38,0.00029041,15]
[336982543,1725274272426,-500.0,0.00029041,15]
[336982544,1725274272435,-713.16,0.00029041,15]
[336982545,1725274272444,-1471.23,0.00029041,15]
[336982546,1725274272458,-500.0,0.00029041,15]
[336982547,1725274272467,-842.06,0.00029041,15]
[336982548,1725274272477,-598.48,0.00029041,15]
[336982549,1725274272486,-718.52,0.00029041,15]
[336982550,1725274272496,-1029.29,0.00029041,15]
[336982551,1725274272506,-613.02,0.00029041,15]
[336982552,1725274272515,-865.09,0.00029041,15]
[336982553,1725274272525,-687.81,0.00029041,15]
[336982554,1725274272534,-813.79,0.00029041,15]
[336982555,1725274272543,-1898.68,0.00029041,15]
[336982556,1725274272552,-500.0,0.00029041,15]
[336982557,1725274272562,-534.47,0.00029041,15]
[336982558,1725274272572,-1265.33,0.00029041,15]
[336982559,1725274272582,-500.0,0.00029041,15]
[336982560,1725274272594,-500.0,0.00029041,15]
[336982561,1725274272604,-609.75,0.00029041,15]
[336982562,1725274272616,-960.51,0.00029041,15]
[336982563,1725274272627,-500.0,0.00029041,15]
[336982564,1725274272637,-668.74,0.00029041,15]
[336982565,1725274272648,-500.0,0.00029041,15]
[336982566,1725274272659,-978.13,0.00029041,15]
[336982567,1725274272669,-893.12,0.00029041,15]
[336982568,1725274272681,-735.7,0.00029041,15]
[336982569,1725274272692,-3970.16,0.00029041,15]
[336982570,1725274272701,-877.32,0.00029041,15]
[336982571,1725274272711,-4849.28,0.00029041,15]
[336982572,1725274272720,-953.2,0.00029041,15]
[336982573,1725274272730,-500.0,0.00029041,15]
[336982574,1725274272739,-1136.95,0.00029041,15]
[336982575,1725274272748,-730.41,0.00029041,15]
[336982576,1725274272760,-1672.46,0.00029041,15]
[336982577,1725274272769,-710.81,0.00029041,15]
[336982578,1725274272778,-640.41,0.00029041,15]
[336982579,1725274272788,-1952.94,0.00029041,15]
[336982580,1725274272798,-941.61,0.00029041,15]
[336982581,1725274272807,-547.19,0.00029041,15]
[336982582,1725274272816,-1195.94,0.00029041,15]
[336982583,1725274272825,-500.0,0.00029041,15]
[336982584,1725274272836,-523.2,0.00029041,15]
[336982585,1725274272847,-500.0,0.00029041,15]
[336982586,1725274272858,-500.0,0.00029041,15]
[336982587,1725274272868,-1299.65,0.00029041,15]
[336982588,1725274272878,-1158.75,0.00029041,15]
[336982589,1725274272888,-668.22,0.00029041,15]
[336982590,1725274272898,-1200.0,0.0002905,2]
[336982591,1725274272907,-151.0,0.00029064,5]
[336982592,1725274272917,-2500.0,0.00029089,4]
[336982593,1725274272927,-500.0,0.00029099,2]
[336982594,1725274272936,-2016.44894918,0.000291,7]
[336982595,1725274272946,-500.0,0.000291,2]
[336982596,1725274272955,-2800.0,0.00029111,2]
[336982597,1725274272964,-998999.0,0.00029121,2]
[336982598,1725274272974,-2800.0,0.00029155,2]
[336982599,1725274272984,-1200.0,0.0002916,2]
[336982600,1725274272994,-500.0,0.0002918,2]
[336982601,1725274273004,-539.52578357,0.0002918,2]
[336982602,1725274273014,-1200.0,0.00029188,2]
[336982603,1725274273023,-1600.0,0.00029195,2]
[336982604,1725274273033,-600.0,0.00029266,2]
[336982605,1725274273042,-500.0,0.00029276,2]
[336982606,1725274273051,-463.6138731,0.00029285,2]
[336982607,1725274273060,-584.24,0.00029315,15]
[336982608,1725274273069,-1144.91,0.00029315,15]
[336982609,1725274273187,-795.89,0.00029315,15]
[336982610,1725274273197,-521.53,0.00029315,15]
[336982611,1725274273207,-651.75,0.00029315,15]
[336982612,1725274273218,-500.0,0.00029315,15]
[336982613,1725274273228,-500.0,0.00029315,15]
[336982614,1725274273238,-500.0,0.00029315,15]
[336982615,1725274273247,-574.04,0.00029315,15]
[336982616,1725274273259,-898.46,0.00029315,15]
[336982617,1725274273268,-688.53,0.00029315,15]
[336982618,1725274273277,-426.1144278,0.00029315,15]
[336982619,1725274273287,-609.28,0.00029315,15]
[336982620,1725274273297,-643.97,0.00029315,15]
[336982621,1725274273307,-500.0,0.00029315,15]
[336982622,1725274273316,-500.0,0.00029315,15]
[336982623,1725274273325,-244.95158266,0.00029315,15]
[336982624,1725274273334,-500.0,0.00029315,15]
[336982625,1725274273344,-509.62,0.00029315,14]
[336982626,1725274273354,-789.32,0.00029315,15]
[336982627,1725274273364,-882.62,0.00029315,15]
[336982628,1725274273373,-809.83,0.00029315,15]
[336982629,1725274273382,-500.0,0.00029315,15]
[336982630,1725274273391,-1150.5,0.00029315,15]
[336982631,1725274273400,-6814.09,0.00029315,8]
[336982632,1725274273410,-637.27,0.00029315,15]
[336982633,1725274273419,-1308.56,0.00029315,15]
[336982634,1725274273428,-865.77,0.00029315,15]
[336982635,1725274273437,-950.48,0.00029315,15]
[336982636,1725274273447,-1009.23,0.00029315,15]
[336982637,1725274273456,-2894.89,0.00029315,15]
[336982638,1725274273467,-1601.38,0.00029315,15]
[336982639,1725274273476,-500.0,0.00029315,15]
[336982640,1725274273486,-713.16,0.00029315,15]
[336982641,1725274273495,-1471.23,0.00029315,15]
[336982642,1725274273505,-500.0,0.00029315,15]
[336982643,1725274273514,-842.06,0.00029315,15]
[336982644,1725274273524,-598.48,0.00029315,15]
[336982645,1725274273533,-718.52,0.00029315,15]
[336982646,1725274273542,-1029.29,0.00029315,15]
[336982647,1725274273551,-613.02,0.00029315,15]
[336982648,1725274273560,-865.09,0.00029315,15]
[336982649,1725274273570,-687.81,0.00029315,15]
[336982650,1725274273581,-813.79,0.00029315,15]
[336982651,1725274273591,-1898.68,0.00029315,15]
[336982652,1725274273601,-500.0,0.00029315,15]
[336982653,1725274273612,-534.47,0.00029315,15]
[336982654,1725274273623,-1265.33,0.00029315,15]
[336982655,1725274273632,-451.28490539,0.00029315,15]
[336982656,1725274273642,-225.09297914,0.00029315,15]
[336982657,1725274273651,-609.75,0.00029315,15]
[336982658,1725274273662,-960.51,0.00029315,15]
[336982659,1725274273672,-500.0,0.00029315,15]
[336982660,1725274273682,-668.74,0.00029315,15]
[336982661,1725274273694,-500.0,0.00029315,15]
[336982662,1725274273704,-978.13,0.00029315,15]
[336982663,1725274273713,-893.12,0.00029315,15]
[336982664,1725274273724,-735.7,0.00029315,15]
[336982665,1725274273735,-3970.16,0.00029315,15]
[336982666,1725274273744,-877.32,0.00029315,15]
[336982667,1725274273755,-4849.28,0.00029315,15]
[336982668,1725274273766,-953.2,0.00029315,15]
[336982669,1725274273777,-500.0,0.00029315,15]
[336982670,1725274273787,-1136.95,0.00029315,15]
[336982671,1725274273797,-730.41,0.00029315,15]
[336982672,1725274273806,-1672.46,0.00029315,15]
[336982673,1725274273815,-710.81,0.00029315,15]
[336982674,1725274273824,-640.41,0.00029315,15]
[336982675,1725274273835,-1952.94,0.00029315,15]
[336982676,1725274273846,-941.61,0.00029315,15]
[336982677,1725274273855,-547.19,0.00029315,15]
[336982678,1725274273865,-1195.94,0.00029315,15]
[336982679,1725274273874,-500.0,0.00029315,15]
[336982680,1725274273884,-523.2,0.00029315,15]
[336982681,1725274273894,-500.0,0.00029315,15]
[336982682,1725274273904,-500.0,0.00029315,15]
[336982683,1725274273913,-1299.65,0.00029315,15]
[336982684,1725274273923,-1158.75,0.00029315,15]
[336982685,1725274273933,-668.22,0.00029315,15]
[336982686,1725274273943,-1000.0,0.00029348,2]
[336982687,1725274273953,-1000.0,0.00029394,2]
[336982688,1725274273963,-151.0,0.00029449,5]